[Event "Reykjavik Open 2024"]
[Site "Reykjavik"]
[Date "2024.03.20"]
[Round "8.3"]
[White "Zhu, Jiner"]
[Black "Moussard, Jules"]
[Result "1/2-1/2"]
[ECO "B84"]
[WhiteElo "2467"]
[BlackElo "2621"]
[Annotator "TA"]
[PlyCount "115"]
[EventDate "2024.03.12"]
[EventCountry "ISL"]
[SourceTitle "playchess.com"]
[Source "ChessBase"]
[SourceQuality "1"]
[TimeControl "40/5400+30:1800+30"]

{[%evp 46,115,202,190,201,200,199,173,171,176,207,145,125,134,124,127,126,117,116,14,8,8,8,8,8,8,8,8,8,8,153,116,164,13,67,75,203,191,404,412,412,404,412,412,404,363,404,0,0,0,0,0,0,0,0,0,0,0,0,0,0,0,0,0,0,0,0,0,0,0,0,0]} 1. e4 {[%emt 0:00:04]} c5 {[%emt 0:01:03]} 2. Nf3 {[%emt 0:00:13]} d6 {[%emt 0:00:19]} 3. d4 {[%emt 0:00:07]} cxd4 {[%emt 0:00:03]} 4. Nxd4 {[%emt 0:00:05]} Nf6 {[%emt 0:00:05]} 5. Nc3 {[%emt 0:00:07]} a6 {[%emt 0:00:04]} 6. Be3 {[%emt 0:00:05]} e6 {[%emt 0:00:20]} 7. Be2 {[%emt 0:02:11]} Qc7 {[%emt 0:00:34]} 8. Qd2 $1 {[%emt 0:00:40][%mdl 4] is recently more successful than 8.0-0.} b5 {[%emt 0:00:25]} 9. a3 {[%emt 0:00:05] B84: Sicilian Scheveningen: 6 Be2 a6, lines without early Be3.} h5 {[%emt 0:01:44]} 10. f3 {[%emt 0:04:24]} Nbd7 {[%emt 0:00:26]} 11. O-O-O {[%emt 0:01:39]} Be7 {[%emt 0:00:49]} 12. h3 {[%emt 0:10:57]} h4 {[%emt 0:01:15]} 13. Rhe1 {[%emt 0:00:18]} Rb8 {[%emt 0:05:54]} 14. f4 {[%emt 0:06:48]} Bb7 {[%emt 0:03:28]} 15. e5 {[%emt 0:13:44]} dxe5 {[%emt 0:01:28]} 16. fxe5 {[%emt 0:00:05]} Ne4 $146 {[%emt 0:08:09]} ({Predecessor:} 16... Nxe5 17. Bf4 Nfd7 18. Qe3 O-O 19. Nb3 Bd6 20. Rxd6 Qxd6 21. Rd1 Bd5 22. Nd4 Rfe8 {½-½ Colovic,A (2449)-Santos Ruiz,M (2560) EU-ch 20th Skopje 2019 (9)}) 17. Nxe4 {[%emt 0:00:24]} Bxe4 {[%emt 0:00:06]} 18. Bg5 {[%emt 0:02:21]} Nc5 {[%emt 0:04:53]} 19. Bxe7 {[%emt 0:06:17]} Qxe7 {[%emt 0:01:12]} 20. Bf3 {[%emt 0:04:50]} Bxf3 {[%emt 0:01:28]} 21. Nxf3 {[%emt 0:00:05]} O-O {[%emt 0:09:51]} 22. Kb1 {[%emt 0:16:06]} Rfc8 {[%emt 0:01:51]} 23. Qf4 {[%emt 0:01:09]} a5 {[%emt 0:05:20]} 24. Ng5 $1 {[%emt 0:03:11]} (24. Nxh4 $2 {loses.} b4 25. a4 Nxa4 $19) ({Stronger than} 24. Qxh4 Qxh4 25. Nxh4 b4 $11) 24... f6 {[%emt 0:09:01]} 25. exf6 {[%emt 0:00:36]} Qxf6 {[%emt 0:00:26]} 26. Qxf6 {[%emt 0:02:51]} gxf6 {[%emt 0:00:03]} 27. Nxe6 {[%emt 0:00:07]} Kf7 {[%emt 0:00:27]} 28. Nxc5 {[%emt 0:06:09]} Rxc5 {[%emt 0:00:02]} 29. Rd7+ {[%emt 0:00:16]} Kg6 {[%emt 0:00:03]} 30. Re4 {[%emt 0:00:54]} Rg5 {[%emt 0:01:46]} 31. Rxh4 {[%emt 0:07:48]} Rxg2 {[%emt 0:00:06]} 32. Rg4+ {[%emt 0:00:47]} ({White should play} 32. Ra7 $16) 32... Rxg4 $11 {[%emt 0:00:04]} 33. hxg4 {[%emt 0:00:03]} Kg5 $1 {[%emt 0:00:38]} 34. Rd4 {[%emt 0:00:52]} Rh8 {[%emt 0:03:41]} 35. b4 {[%emt 0:06:09]} axb4 {[%emt 0:01:19]} 36. axb4 {[%emt 0:00:06]} Rh4 {[%emt 0:11:29]} 37. c3 {[%emt 0:00:24]} Rh2 {[%emt 0:02:51]} (37... Rxg4 $11 38. Rd5+ Kf4) 38. Kc1 $1 $16 {[%emt 0:00:10]} Re2 {[%emt 0:01:38]} (38... Ra2 $16 {was called for.}) 39. Kd1 $2 {[%emt 0:00:32]} (39. Rd6 $1 $18) 39... Ra2 {[%emt 0:04:27]} (39... Rh2 $11) 40. Rd6 $14 {[%emt 0:00:42]} Rg2 {[%emt 0:02:14] [#]} (40... Rf2 $16) 41. Rb6 $1 $18 {[%emt 0:31:35]} Rh2 $2 {[%emt 0:43:44]} (41... Rxg4 {might work better.} 42. Rxb5+ f5) 42. Rxb5+ $18 {[%emt 0:04:56]} Kxg4 {[%emt 0:00:10]} 43. c4 {[%emt 0:00:00]} Kf4 {[%emt 0:00:00]} 44. c5 {[%emt 0:00:00]} Ke5 {[%emt 0:00:00]} 45. Rb6 {[%emt 0:00:00]} f5 {[%emt 0:00:00] [#]} 46. b5 $2 {[%emt 0:00:00]} (46. c6 $1 $18 {[%cal Rc6c7] Strongly threatening c7.} Kd6 47. b5) 46... Kd4 $1 $11 {[%emt 0:00:00]} 47. c6 {[%emt 0:00:00]} Kd3 {[%emt 0:00:00]} 48. Ke1 {[%emt 0:00:00]} Ke3 $1 {[%emt 0:00:00]} 49. Kf1 {[%emt 0:00:00]} Kf3 $1 {[%emt 0:00:00]} 50. Kg1 {[%emt 0:00:00]} Rg2+ $1 {[%emt 0:00:00]} 51. Kh1 {[%emt 0:00:00]} Rc2 {[%emt 0:00:00]} 52. Rb7 {[%emt 0:00:00]} (52. Ra6 $5 f4 $8 53. Ra3+ Kf2 54. Kh2 $11) 52... Rc5 $1 {[%emt 0:00:00]} 53. Rb8 {[%emt 0:00:00]} (53. Kh2 $5 f4 $8 54. Rd7 Rxb5 55. Rd3+ Ke2 56. Rc3 Rh5+ 57. Kg2 $11) 53... f4 {[%emt 0:00:00]} 54. Rg8 {[%emt 0:00:00]} Kf2 {[%emt 0:00:00]} 55. Rh8 $1 {[%emt 0:00:00]} Kg3 {[%emt 0:00:00]} 56. Rg8+ {[%emt 0:00:00]} Kf2 {[%emt 0:00:00]} 57. Rh8 {[%emt 0:00:00]} Kg3 {[%emt 0:00:00]} 58. Rg8+ {[%emt 0:00:00]} 1/2-1/2

[Event "Reykjavik Open 2024"]
[Site "Reykjavik"]
[Date "2024.03.20"]
[Round "8.4"]
[White "Hjartarson, Johann"]
[Black "Pultinevicius, Paulius"]
[Result "0-1"]
[ECO "B12"]
[WhiteElo "2460"]
[BlackElo "2575"]
[Annotator "TA"]
[PlyCount "119"]
[EventDate "2024.03.12"]
[EventCountry "ISL"]
[SourceTitle "playchess.com"]
[Source "ChessBase"]
[SourceQuality "1"]
[TimeControl "40/5400+30:1800+30"]

{[%evp 9,119,17,14,9,7,6,17,5,20,0,10,0,0,0,0,0,0,0,10,0,8,0,16,0,0,0,0,-10,0,0,0,0,0,0,0,0,51,0,6,0,0,0,0,0,0,-2,0,0,12,-22,-27,-25,-25,-22,-12,-16,-29,-64,-69,-76,-55,-54,-62,-63,-69,-85,0,0,0,0,0,-18,-19,-118,-91,-150,-97,-809,-70,-72,-69,-63,0,-81,-79,-72,-56,-72,-63,-57,-50,-45,-50,-50,-45,-49,-37,-32,-72,-1181,-1213,-1091,-1717,-1891,-1886,-1383,-1250,-4570,-654,-29994,-29995,-29999]} 1. e4 {[%emt 0:00:27]} c6 {[%emt 0:00:42]} 2. d4 {[%emt 0:00:39]} d5 {[%emt 0:00:11]} 3. e5 {[%emt 0:00:08]} Bf5 {[%emt 0:00:06]} 4. h4 {[%emt 0:00:10]} h5 {[%emt 0:00:05]} 5. Bd3 {[%emt 0:00:11]} Bxd3 {[%emt 0:00:08]} 6. Qxd3 {[%emt 0:00:06][%cal Oe5e6]} Qa5+ {[%emt 0:01:26]} 7. Nd2 {[%emt 0:00:24][%cal Oe5e6] Schwarz muss nun e6! beachten.} e6 {[%emt 0:00:05]} 8. Ngf3 {[%emt 0:00:10] Die Stellung ist ausgeglichen.} Nh6 {[%emt 0:02:06]} 9. O-O {[%emt 0:00:37]} Nf5 {[%emt 0:00:04]} 10. Nb3 {[%emt 0:00:33]} Qa6 {[%emt 0:00:05]} 11. Qd1 {[%emt 0:00:08]} b6 {[%emt 0:00:09]} 12. Bg5 {[%emt 0:00:22]} c5 {[%emt 0:00:05]} 13. dxc5 {[%emt 0:00:12]} Bxc5 {[%emt 0:00:04]} 14. c3 {[%emt 0:00:19]} Nc6 {[%emt 0:00:06]} 15. Re1 {[%emt 0:00:30]} Rc8 {[%emt 0:00:10]} 16. Nxc5 {[%emt 0:02:07]} bxc5 {[%emt 0:00:05]} 17. b3 {[%emt 0:00:08]} Rc7 {[%emt 0:02:30]} 18. Qd2 {[%emt 0:00:40]} Rd7 {[%emt 0:00:25]} 19. Red1 {[%emt 0:01:03]} Qb7 {[%emt 0:03:12]} 20. Rac1 {[%emt 0:01:43]} a5 {[%emt 0:01:11]} 21. Qe2 {[%emt 0:04:41]} Qb8 {[%emt 0:16:31]} 22. g3 {[%emt 0:10:48]} Qb7 {[%emt 0:20:23]} (22... O-O $11) 23. Bf4 {[%emt 0:10:14]} (23. Ne1 $1 $14) 23... Rd8 {[%emt 0:00:04]} 24. Ne1 {[%emt 0:03:05]} a4 {[%emt 0:05:41]} 25. Rb1 {[%emt 0:05:33]} axb3 {[%emt 0:05:01]} 26. axb3 {[%emt 0:02:29]} Rb8 {[%emt 0:04:41]} 27. Kh2 {[%emt 0:13:25]} d4 {[%emt 0:11:14]} 28. c4 {[%emt 0:03:38]} Nb4 {[%emt 0:00:27]} 29. Nd3 {[%emt 0:00:24]} Nxd3 {[%emt 0:00:05]} 30. Rxd3 {[%emt 0:00:08]} Qa8 {[%emt 0:00:38]} 31. Rd2 {[%emt 0:04:37]} Rb6 {[%emt 0:03:52]} 32. Ra2 {[%emt 0:01:35]} Qb7 {[%emt 0:01:21][%cal Oe8g8]} 33. Rba1 {[%emt 0:07:48]} O-O $1 {[%emt 0:00:13]} (33... Rxb3 $2 34. Ra8+ $18) 34. Ra7 {[%emt 0:01:11]} Qc6 $40 {[%emt 0:01:02][%mdl 128] Schwarz hat was vor.} 35. Qd3 {[%emt 0:03:03]} Rfb8 {[%emt 0:00:57]} 36. R1a3 {[%emt 0:00:29]} R6b7 $1 {[%emt 0:00:21]} 37. R7a6 {[%emt 0:00:11] [#]} Qc7 {[%emt 0:00:16]} ({Besser ist} 37... Qc8 $1 $17 {[%cal Ob7b3] ...Rxb3! ist eine echte Drohung.} 38. R6a5 Ne7) 38. Qf3 $11 {[%emt 0:03:20]} Qd7 {[%emt 0:04:23]} 39. Qxh5 {[%emt 0:02:33]} d3 {[%emt 0:00:22][%cal Od7d4] ...Qd4! wäre nun fies.} 40. Qd1 {[%emt 0:06:45]} Qd4 {[%emt 0:00:36][%mdl 1024] Es drohte Be3. Schwarz hat Kompensation.} 41. Kh3 {[%emt 0:37:31] [#]} (41. Kg2 $1 $11 {bleibt in der Remisbreite.}) 41... Qe4 $1 $17 {[%emt 0:43:45]} (41... Qxf2 $6 42. Qxd3 $11) 42. R6a5 {[%emt 0:00:00]} (42. Ra8 $142) 42... Qe2 {[%emt 0:00:00] Schwarz hat aktiveres Spiel.} (42... Nd4 $142 {[%cal Rb7b3]} 43. b4 Rxb4 44. Rxc5 Qf5+ 45. Qg4 Qe4) 43. Qd2 $2 {[%emt 0:00:00][%mdl 8192]} (43. Qxe2 $2 dxe2 44. Ra1 Nd4 $19 (44... Rxb3 $2 45. R5a2 $19)) (43. Ra1 $17) 43... Nd4 $2 {[%emt 0:00:00]} (43... Qf1+ $19 44. Kg4 Qe2+ (44... Rxb3 $2 45. Ra2 $19) 45. Qxe2 dxe2) 44. b4 $1 $15 {[%emt 0:00:00] Weiss ist schwach auf den weissen Feldern} Qf1+ {[%emt 0:00:00]} ({Viel schlechter ist} 44... cxb4 45. Rxd3 Qf1+ 46. Kg4 $15) (44... Rxb4 45. Qxd3 Qxf2 (45... Rxc4 46. Qxe2 Nxe2 47. Be3 $14) 46. Ra2 $11) (44... Qxd2 {vereinfacht} 45. Bxd2 Nf3 46. Rxd3 Nxe5 47. Rb3 Nxc4 48. Ra2 Nxd2 49. Rxd2 Rb5) 45. Kg4 {[%emt 0:00:00]} Qe2+ {[%emt 0:00:00]} 46. Kh3 $1 {[%emt 0:00:00]} cxb4 {[%emt 0:00:00]} 47. Rxd3 {[%emt 0:00:00] [#]} b3 $1 {[%emt 0:00:50]} 48. Rxd4 {[%emt 0:00:00]} (48. Qxe2 Nxe2) 48... Qf1+ {[%emt 0:03:25]} 49. Kg4 $1 {[%emt 0:00:00] Droht Rd8+ und aus.} b2 {[%emt 0:00:04]} 50. Rd8+ {[%emt 0:00:00]} Kh7 $1 {[%emt 0:00:11]} 51. Qc2+ {[%emt 0:00:00]} g6 {[%emt 0:00:05]} 52. Rd1 {[%emt 0:00:00]} b1=Q {[%emt 0:00:12] Das Brett brennt.} (52... b1=B $2 {geht unter.} 53. Qxg6+ Kxg6 54. h5+ (54. Rxf1 Bf5+ 55. Kf3 Bd3 $18) 54... Kg7 55. Rxf1 $18) 53. Rxb1 {[%emt 0:00:00]} Rxb1 {[%emt 0:00:27]} 54. h5 $2 {[%emt 0:00:25][%mdl 8192]} (54. Ra7 $17 Kg8 55. f3) 54... Qh1 $19 {[%emt 0:01:19][%csl Gg6][%cal Rh1h5]} 55. hxg6+ {[%emt 0:00:34]} fxg6 {[%emt 0:00:04][%csl Gg6][%cal Rh1h5]} 56. Ra7+ {[%emt 0:00:22]} R1b7 {[%emt 0:00:05]} 57. Rxb7+ {[%emt 0:00:17]} Rxb7 {[%emt 0:00:03][%csl Gg6][%cal Rh1h5]} 58. Kg5 {[%emt 0:02:59]} Kg8 {[%emt 0:03:52]} (58... Kh8 $142 59. Qd3 Rf7 60. Qxg6 Rg7) 59. Kf6 {[%emt 0:03:11]} Rf7+ {[%emt 0:00:10]} 60. Kxe6 {[%emt 0:00:12] Gewichteter Fehlerwert: Weiß=0.43/Schwarz=0.27 (präzise) .  Verlustzug:     	Weiß=2     	---        Gewinn verpasst:   	---       	Schwarz=1     Fehler:       	Weiß=3     	Schwarz=3     Ungenau:       	Weiß=2     	---        OK:         	Weiß=17    	Schwarz=17    Bester:       	Weiß=2     	Schwarz=4     Stark:        	Weiß=3     	Schwarz=4} 0-1

[Event "Reykjavik Open 2024"]
[Site "Reykjavik"]
[Date "2024.03.20"]
[Round "8.5"]
[White "Cramling Bellon, Anna"]
[Black "Yazgi, Huseyin Yigit"]
[Result "1-0"]
[ECO "A53"]
[WhiteElo "2115"]
[BlackElo "1905"]
[Annotator "RC"]
[PlyCount "103"]
[EventDate "2024.03.12"]
[EventCountry "ISL"]
[SourceTitle "playchess.com"]
[Source "ChessBase"]
[SourceQuality "1"]
[TimeControl "40/5400+30:1800+30"]

1. d4 {[%emt 0:12:41]} d6 {[%emt 0:00:13]} 2. c4 {[%emt 0:01:32]} Nf6 {[%emt 0:00:22]} 3. Nc3 {[%emt 0:00:12]} Nbd7 {[%emt 0:00:12]} 4. e4 {[%emt 0:00:11]} e5 {[%emt 0:00:11]} 5. d5 {[%emt 0:01:59]} Nc5 {[%emt 0:01:33]} 6. Qc2 {[%emt 0:03:08]} a5 {[%emt 0:00:35]} 7. h3 {[%emt 0:01:35]} Be7 {[%emt 0:11:08]} 8. g3 {[%emt 0:10:20]} O-O {[%emt 0:00:00]} 9. Be3 {[%emt 0:01:16]} Nfd7 {[%emt 0:01:56]} 10. Nf3 {[%emt 0:02:43]} a4 {[%emt 0:06:53]} 11. Be2 {[%emt 0:04:20]} c6 {[%emt 0:10:06]} 12. O-O {[%emt 0:06:27]} cxd5 {[%emt 0:13:17]} 13. Nxd5 {[%emt 0:01:07]} Nb6 {[%emt 0:03:37]} 14. Bxc5 {[%emt 0:03:48]} Nxd5 {[%emt 0:02:17]} 15. cxd5 {[%emt 0:06:33]} dxc5 {[%emt 0:02:22]} 16. Nxe5 {[%emt 0:00:47]} Bxh3 {[%emt 0:00:46]} 17. Rfd1 {[%emt 0:00:14]} Bf6 {[%emt 0:01:10]} 18. Nd3 {[%emt 0:08:42]} Bd4 {[%emt 0:02:20]} 19. Nxc5 {[%emt 0:07:55]} Qf6 {[%emt 0:01:42]} 20. Nd3 {[%emt 0:01:21]} a3 {[%emt 0:03:45]} 21. Rab1 {[%emt 0:10:09]} Rfc8 {[%emt 0:06:59]} 22. Qd2 {[%emt 0:03:10]} axb2 {[%emt 0:00:44]} 23. Qf4 {[%emt 0:01:27]} Rc2 {[%emt 0:08:59]} 24. Qxf6 {[%emt 0:06:04]} Bxf6 {[%emt 0:00:53]} 25. e5 {[%emt 0:04:00]} Bxe5 {[%emt 0:02:49]} 26. Nxe5 {[%emt 0:00:03]} Rxe2 {[%emt 0:00:08]} 27. Nc4 {[%emt 0:00:51]} Rxa2 {[%emt 0:01:03]} 28. d6 {[%emt 0:00:04]} Re8 {[%emt 0:08:33]} 29. Rxb2 {[%emt 0:01:38]} Rxb2 {[%emt 0:00:06]} 30. Nxb2 {[%emt 0:00:03]} b5 {[%emt 0:00:33]} 31. Rd5 {[%emt 0:00:37]} Bd7 {[%emt 0:00:33]} 32. Nd3 {[%emt 0:00:06]} f6 {[%emt 0:00:45]} 33. Nc5 {[%emt 0:01:06]} Bc6 {[%emt 0:00:42]} 34. d7 {[%emt 0:00:12]} Rd8 {[%emt 0:00:10]} 35. Rd6 {[%emt 0:00:07]} Bxd7 {[%emt 0:01:17]} 36. Rxd7 {[%emt 0:00:25]} Rxd7 {[%emt 0:01:38]} 37. Nxd7 {[%emt 0:00:04]} h5 {[%emt 0:01:40]} 38. Kg2 {[%emt 0:01:52]} Kf7 {[%emt 0:00:10]} 39. Kh3 {[%emt 0:00:37]} g5 {[%emt 0:00:34]} 40. Nc5 {[%emt 0:00:27]} Ke7 {[%emt 0:01:25]} 41. f4 {[%emt 0:04:51]} b4 {[%emt 0:00:51]} 42. Kg2 {[%emt 0:08:04]} g4 {[%emt 0:13:02]} 43. Kf2 {[%emt 0:03:08]} Kd6 {[%emt 0:00:10]} 44. Ne4+ {[%emt 0:10:39]} Ke6 {[%emt 0:03:18]} 45. Ke3 {[%emt 0:00:34]} f5 {[%emt 0:02:25]} 46. Nd2 {[%emt 0:00:31]} Kd5 {[%emt 0:00:29]} 47. Kd3 {[%emt 0:01:33]} Kc5 {[%emt 0:03:29]} 48. Nb3+ {[%emt 0:01:42]} Kd5 {[%emt 0:01:15]} 49. Nd4 {[%emt 0:00:40]} Kc5 {[%emt 0:13:07]} 50. Nxf5 {[%emt 0:00:18]} b3 {[%emt 0:00:03]} 51. Kc3 {[%emt 0:01:39]} Kd5 {[%emt 0:00:43]} 52. Nh4 {[%emt 0:00:36]} 1-0

[Event "Reykjavik Open 2024"]
[Site "Reykjavik"]
[Date "2024.03.20"]
[Round "8.6"]
[White "Belenkaya, Dina"]
[Black "Gurner, Jem"]
[Result "1-0"]
[ECO "E90"]
[WhiteElo "2164"]
[BlackElo "1968"]
[Annotator "RC"]
[PlyCount "69"]
[EventDate "2024.03.12"]
[EventCountry "ISL"]
[SourceTitle "playchess.com"]
[Source "ChessBase"]
[SourceQuality "1"]
[TimeControl "40/5400+30:1800+30"]

1. d4 {[%emt 0:17:44]} Nf6 {[%emt 0:00:07]} 2. c4 {[%emt 0:00:09]} g6 {[%emt 0:00:06]} 3. Nc3 {[%emt 0:00:03]} Bg7 {[%emt 0:00:06]} 4. e4 {[%emt 0:00:04]} d6 {[%emt 0:00:07]} 5. Nf3 {[%emt 0:00:04]} O-O {[%emt 0:00:09]} 6. Bd3 {[%emt 0:00:12]} Bg4 {[%emt 0:00:24]} 7. Be2 {[%emt 0:00:09]} c5 {[%emt 0:01:08]} 8. d5 {[%emt 0:00:13]} e6 {[%emt 0:00:59]} 9. O-O {[%emt 0:04:12]} exd5 {[%emt 0:01:20]} 10. cxd5 {[%emt 0:03:08]} Bxf3 {[%emt 0:05:12]} 11. Bxf3 {[%emt 0:03:14]} a6 {[%emt 0:02:52]} 12. a4 {[%emt 0:00:11]} Nbd7 {[%emt 0:01:58]} 13. Be2 {[%emt 0:04:10]} b5 {[%emt 0:20:50]} 14. axb5 {[%emt 0:02:31]} axb5 {[%emt 0:00:27]} 15. Rxa8 {[%emt 0:00:12]} Qxa8 {[%emt 0:00:06]} 16. Bxb5 {[%emt 0:01:37]} Rb8 {[%emt 0:05:42]} 17. Bc6 {[%emt 0:01:06]} Qa5 {[%emt 0:02:32]} 18. f4 {[%emt 0:03:29]} Qb4 {[%emt 0:12:08]} 19. Qf3 {[%emt 0:06:13]} Nb6 {[%emt 0:07:56]} 20. e5 {[%emt 0:07:21]} Ne8 {[%emt 0:00:56]} 21. Nb5 {[%emt 0:03:59]} Nc4 {[%emt 0:02:35]} 22. b3 {[%emt 0:03:01]} Rxb5 {[%emt 0:01:49]} 23. Bxb5 {[%emt 0:02:47]} Qxb5 {[%emt 0:00:28]} 24. bxc4 {[%emt 0:00:06]} Qxc4 {[%emt 0:00:26]} 25. Bb2 {[%emt 0:01:18]} Qc2 {[%emt 0:06:25]} 26. Ba1 {[%emt 0:06:05]} Bf8 {[%emt 0:05:30]} 27. Qh3 {[%emt 0:03:36]} Ng7 {[%emt 0:02:25]} 28. exd6 {[%emt 0:04:13]} Bxd6 {[%emt 0:00:45]} 29. Qc8+ {[%emt 0:00:14]} Bf8 {[%emt 0:00:14]} 30. d6 {[%emt 0:01:20]} Ne6 {[%emt 0:03:29]} 31. d7 {[%emt 0:00:56]} Qd2 {[%emt 0:05:58]} 32. Bf6 {[%emt 0:05:35]} c4 {[%emt 0:00:18]} 33. Be7 {[%emt 0:03:36]} Qe3+ {[%emt 0:02:53]} 34. Kh1 {[%emt 0:00:53]} Qd3 {[%emt 0:00:49]} 35. Rg1 {[%emt 0:00:40]} 1-0

[Event "Reykjavik Open 2024"]
[Site "Reykjavik"]
[Date "2024.03.20"]
[Round "8.7"]
[White "Seemann, Jakub"]
[Black "Maze, Sebastien"]
[Result "0-1"]
[ECO "B30"]
[WhiteElo "2451"]
[BlackElo "2551"]
[Annotator "TA"]
[PlyCount "104"]
[EventDate "2024.03.12"]
[EventCountry "ISL"]
[SourceTitle "playchess.com"]
[Source "ChessBase"]
[SourceQuality "1"]
[TimeControl "40/5400+30:1800+30"]

{[%evp 19,104,67,66,69,70,69,61,57,97,85,91,77,79,79,72,80,96,79,74,41,94,31,54,58,47,52,89,0,0,-54,-49,-60,-45,-125,-97,-126,-131,-135,-99,-42,-17,-18,-17,-22,-12,-189,-152,-202,-214,-207,-137,-141,-141,-139,-139,-143,-124,-124,-124,-154,-152,-295,-294,-272,-296,-394,-404,-388,-271,-279,-272,-279,-278,-557,-554,-29967,-29969,-29970,-29968,-29968,-29969,-29969,-29970,-29969,-29968,-29966,-29969]} 1. e4 {[%emt 0:03:12]} c5 {[%emt 0:00:08]} 2. Nf3 {[%emt 0:00:08]} Nc6 {[%emt 0:00:10]} 3. Bb5 {[%emt 0:00:13]} e6 {[%emt 0:00:06]} 4. Bxc6 {[%emt 0:01:04]} bxc6 {[%emt 0:00:13]} 5. d3 {[%emt 0:00:06]} Ne7 {[%emt 0:00:05]} 6. Nbd2 {[%emt 0:00:19] B30: Sizilianisch (Rossolimo-Variante).} Ng6 {[%emt 0:06:45] 6...d6 ist modischer.} 7. h4 {[%emt 0:02:19]} h5 {[%emt 0:00:47]} 8. e5 {[%emt 0:00:36]} f6 {[%emt 0:00:15]} 9. Qe2 {[%emt 0:03:23]} Qc7 {[%emt 0:03:40]} 10. Nc4 {[%emt 0:00:26]} Ba6 {[%emt 0:09:43]} 11. Qe4 {[%emt 0:00:37]} Kf7 $1 {[%emt 0:01:00]} 12. Bf4 {[%emt 0:00:39]} Bxc4 {[%emt 0:05:46]} 13. dxc4 {[%emt 0:01:29]} d5 {[%emt 0:05:10]} 14. exd6 {[%emt 0:04:36]} Bxd6 {[%emt 0:00:06]} 15. Bxd6 {[%emt 0:00:35]} Qxd6 {[%emt 0:00:03]} 16. Rd1 {[%emt 0:01:28]} Qc7 {[%emt 0:00:24]} 17. O-O {[%emt 0:00:40]} Rhd8 {[%emt 0:11:54]} 18. Rfe1 {[%emt 0:00:38]} Nf8 {[%emt 0:00:23]} 19. g3 $146 {[%emt 0:07:42]} ({Predecessor:} 19. b3 g6 20. Qe3 Qe7 21. Nd2 Rd4 22. c3 Rxh4 23. Ne4 f5 24. Nxc5 Rg4 25. f3 Rg3 26. Ne4 fxe4 27. Qf4+ Qf6 28. Qxg3 exf3 29. Rf1 {1-0 Markovic,I (2494)-Benkovic,P (2413) YUG-chT playoff 2003}) 19... e5 {[%emt 0:21:05]} (19... Rxd1 $14 20. Rxd1 Rb8) 20. c3 {[%emt 0:12:41]} ({Günstiger ist} 20. Nd2 $1 $16) 20... Kg8 {[%emt 0:04:05]} 21. Nd2 {[%emt 0:07:46]} Rab8 {[%emt 0:05:34]} 22. b3 {[%emt 0:06:26]} Qd7 {[%emt 0:10:27]} 23. Qe3 {[%emt 0:14:20]} (23. Nf1 $16 Qe6 24. Ne3) 23... Qg4 $1 $11 {[%emt 0:02:49]} 24. Kh2 {[%emt 0:04:44]} (24. Qxc5 $2 Rd3 25. Qxc6 (25. Qxa7 $2 Rbd8 $19) 25... Rbd8 $19) ({Vorzuziehen ist} 24. Qe4 $11) 24... Rd6 $1 $15 {[%emt 0:01:06]} 25. Rc1 $1 {[%emt 0:11:15]} Rbd8 $1 {[%emt 0:00:15]} 26. Ne4 {[%emt 0:00:05]} (26. Nf1 $15) 26... Rd3 $17 {[%emt 0:00:25]} 27. Qe2 {[%emt 0:01:24]} Ne6 $1 {[%emt 0:03:08]} 28. Rc2 {[%emt 0:02:09]} a5 {[%emt 0:02:38]} 29. Rd2 {[%emt 0:09:27]} Rxd2 {[%emt 0:00:39]} 30. Nxd2 {[%emt 0:00:07]} Qxe2 {[%emt 0:00:48]} 31. Rxe2 {[%emt 0:00:01]} Rd3 {[%emt 0:00:08]} 32. Ne4 $2 {[%emt 0:04:12]} (32. Nb1 $1 $11 {und Weiss steht sicher.}) 32... f5 $19 {[%emt 0:00:23]} 33. Nxc5 {[%emt 0:01:37]} (33. Ng5 $17 Nxg5 34. hxg5) 33... Nxc5 $19 {[%emt 0:00:04]} 34. Rxe5 {[%emt 0:00:02]} Ne4 {[%emt 0:00:13]} 35. Rxf5 {[%emt 0:00:41]} Rd2 {[%emt 0:00:47]} 36. Rxa5 {[%emt 0:00:21]} Rxf2+ {[%emt 0:01:49]} 37. Kg1 {[%emt 0:00:14]} Rb2 {[%emt 0:00:42]} 38. Rxh5 {[%emt 0:00:47]} Rxa2 {[%emt 0:00:43]} 39. Re5 {[%emt 0:00:56]} Nxc3 {[%emt 0:01:02]} (39... Nxg3 $2 40. Rc5 Rb2 41. b4 Ne2+ 42. Kf2 $19) 40. Rc5 {[%emt 0:00:14]} (40. Re8+ $17 Kh7 41. b4) 40... Ne2+ $19 {[%emt 0:02:05]} 41. Kf2 {[%emt 0:03:42] [#]} Nc1+ $1 {[%emt 0:00:09]} 42. Ke3 {[%emt 0:09:37]} Re2+ {[%emt 0:00:40]} 43. Kf3 {[%emt 0:00:03]} Re6 {[%emt 0:00:07]} 44. b4 {[%emt 0:00:49] [#]} Nd3 $1 {[%emt 0:00:39]} 45. Rf5 {[%emt 0:00:12]} Nxb4 {[%emt 0:00:17]} 46. Kf4 $2 {[%emt 0:00:14]} (46. Rf4) 46... Nd3+ $19 {[%emt 0:00:20]} 47. Kg5 {[%emt 0:00:06]} Re5 {[%emt 0:04:17]} 48. g4 {[%emt 0:00:58]} Rxf5+ {[%emt 0:00:09]} 49. Kxf5 {[%emt 0:00:15]} Nb2 {[%emt 0:00:06]} 50. c5 {[%emt 0:00:23]} Nd3 {[%emt 0:00:05]} 51. Ke6 {[%emt 0:00:04]} Nxc5+ {[%emt 0:00:03]} 52. Kd6 {[%emt 0:00:02]} Nd3 {[%emt 0:00:09]} 0-1